Cogmind - Beta 15 @@@ ROGUE MODE // 2025.09.09 @ 12:25:28 Player: Godsword Result: Destroyed by W6-TAZ(R) with Subdweller Machine Gun Performance ------------- Evolutions (0) 0 Regions Visited (3) 600 Robots Destroyed (11) 55 Value Destroyed (163) 163 Prototype IDs (11) 220 Alien Tech Used (0) 0 Bonus (0) 0 TOTAL SCORE: 1038 Bonus ------- None Cogmind --------- Core Integrity 0/250 Matter 269/300 Energy 67/100 System Corruption 0% Temperature Cool (0) Movement Rolling (115) Ox1 Location -10/Subcaves Parts ------- > --- POWER (1) -------- (None) > --- PROPULSION (2) --- Compact Wheel > --- UTILITY (2) ------ Large Storage Unit > --- WEAPON (2) ------- Subdweller Laser > --- INVENTORY (15) --- Ion Engine Subdweller Power Source Subdweller Monowheel Subdweller Monowheel Disposable Heat Sink Small Storage Unit Small Matter Pod (50) Improved Terrain Scanner Cobbler Unit Subdweller Beam Cannon Mining Laser Peak State ------------ > --- POWER ------------ Ion Engine > --- PROPULSION ------- Compact Wheel Compact Wheel > --- UTILITY ---------- Large Storage Unit Improved Terrain Scanner > --- WEAPON ----------- Assault Rifle Battle Rifle > --- INVENTORY -------- Ion Engine Compact Wheel Subdweller Monowheel Subdweller Monowheel Small Storage Unit Small Matter Pod Improved Terrain Scanner Cobbler Unit EM Pulse Gun Subdweller Laser Subdweller Beam Cannon Mining Laser [Rating: 12] Favorites ----------- Power Ion Engine Engine Ion Engine Propulsion Compact Wheel Wheel Compact Wheel Utility Improved Terrain Scanner Device Improved Terrain Scanner Storage Large Storage Unit Weapon Assault Rifle Energy Gun Small Laser Energy Cannon Subdweller Beam Cannon Ballistic Gun Assault Rifle Special Weapon Flamer Build | -11 -10 -10 -10 ------- Run | Yrd Mat Min Sub Slots Evolved . | . . . . Power . | . . . . Propulsion . | . . . . Utility . | . . . . Weapon . | . . . . Parts Attached 16 | 9 1 . 6 Power 1 | 1 . . . Engine 1 | 1 . . . Core . | . . . . Reactor . | . . . . Propulsion 5 | 4 . . 1 Treads . | . . . . Leg . | . . . . Wheel 5 | 4 . . 1 Hover . | . . . . Flight . | . . . . Utility 3 | 2 1 . . Device 1 | 1 . . . Storage 2 | 1 1 . . Processor . | . . . . Hackware . | . . . . Protection . | . . . . Artifact . | . . . . Weapon 7 | 2 . . 5 Energy Gun 3 | 1 . . 2 Energy Cannon 1 | . . . 1 Ballistic Gun 2 | 1 . . 1 Ballistic Cannon . | . . . . Launcher . | . . . . Special Weapon 1 | . . . 1 Impact Weapon . | . . . . Slashing Weapon . | . . . . Piercing Weapon . | . . . . Special Melee Weapon . | . . . . Unidentified Prototypes . | . . . . Parts Lost 9 | . . . 9 Power 1 | . . . 1 Propulsion 3 | . . . 3 Utility 1 | . . . 1 Weapon 4 | . . . 4 Highest Loss Streak 8 | . . . 8 To Critical Strikes 1 | . . . 1 Average Backups 8 | 1 6 8 11 Power 1 | . 1 1 1 Propulsion 2 | . 1 2 3 Utility 2 | . 2 3 3 Weapon 2 | . 1 2 3 Tool/Special . | . . . . Unused Backups 10 | 1 . . 9 Power 2 | . . . 2 Propulsion 3 | 1 . . 2 Utility 4 | . . . 4 Weapon 1 | . . . 1 Tool/Special . | . . . . Average Slot Usage (%) 93 | . 100 100 91 Engine 13 | . 14 14 12 Wheel 22 | . 28 28 21 Device 14 | . 14 14 14 Storage 14 | . 14 14 14 Energy Gun 13 | . 14 14 12 Ballistic Gun 14 | . 14 14 14 Peak Build Rating 12 | 9 10 10 12 Average Rating 9 | 6 9 10 9 On Entrance 7 | . 9 10 10 Naked Turns . | . . . . Heaviest Build 33 | 14 29 29 33 Greatest Support 32 | 32 32 32 32 Greatest Overweight (x) 2 | 2 . . 2 Average Overweight (x) . | . . . . Largest Inventory Capacity 15 | 8 15 15 15 Average Capacity 13 | 7 14 15 15 Most Carried 15 | 5 8 8 15 Average Carried 8 | 2 6 8 11 Final Capacity 15 | 8 15 15 15 Final Carried 12 | 5 8 8 12 Class Distribution -------------------- 100% | Mutant Dominant Class ---------------- Mutant | -10/Materials Mutant | -10/Mines Mutant | -10/Subcaves Resources | -11 -10 -10 -10 ----------- Run | Yrd Mat Min Sub Matter Collected 472 | 376 . . 96 Remotely . | . . . . Salvage Created 339 | 211 . . 128 Parts 26 | 17 . . 9 Haulers Intercepted . | . . . . Recyclers Shooed 1 | 1 . . . Parts Field Recycled . | . . . . Retrieved Matter . | . . . . Parts Self-Destructed . | . . . . Prevented . | . . . . Kills | -11 -10 -10 -10 ------- Run | Yrd Mat Min Sub Combat Hostiles Destroyed 3 | . . . 3 Guns 3 | . . . 3 Classes Destroyed 4 | 3 . . 1 Worker 2 | 2 . . . Tunneler 5 | 5 . . . Recycler 1 | 1 . . . Subdweller 3 | . . . 3 Best Kill Streak 6 | 6 . . 2 Combat Bots Only 2 | . . . 2 Max Kills in Single Turn 1 | 1 . . 1 Gunslinging . | . . . . Exploded . | . . . . Melee . | . . . . Uniques/NPCs Destroyed . | . . . . Combat | -11 -10 -10 -10 -------- Run | Yrd Mat Min Sub Hostile Shots Fired 52 | . . . 52 Missed 12 | . . . 12 Hits 40 | . . . 40 Projectile 40 | . . . 40 Critical Strikes 3 | . . . 3 Damage Taken 842 | . . . 842 Core 261 | . . . 261 Absorbed by Shields . | . . . . Core Remaining (%) 100 | 100 . . . Volleys Fired 33 | 12 . . 21 Largest 2 | 2 . . 2 Hottest 60 | 60 . . 60 Shots Fired 66 | 24 . . 42 Gun 66 | 24 . . 42 Cannon . | . . . . Launcher . | . . . . Special . | . . . . Kinetic 41 | 12 . . 29 Thermal 18 | 12 . . 6 Explosive . | . . . . Electromagnetic 7 | . . . 7 Robot Hit Streak 25 | 10 . . 25 Robot Miss Streak 3 | 3 . . 2 Penetration Max . | . . . . Secondary Targets . | . . . . Shots Hit Robots 48 | 16 . . 32 Core Hits 14 | 9 . . 5 Critical Kills . | . . . . Critical Parts Destroyed . | . . . . Critical Strikes . | . . . . Melee Attacks . | . . . . Impact . | . . . . Slashing . | . . . . Piercing . | . . . . Sneak Attacks . | . . . . Combat Hostiles . | . . . . Follow-up Attacks . | . . . . Damage Inflicted 430 | 184 . . 246 Guns 430 | 184 . . 246 Cannons . | . . . . Explosions . | . . . . Melee . | . . . . Ramming . | . . . . Kinetic 255 | 85 . . 170 Thermal 139 | 99 . . 40 Explosive . | . . . . Electromagnetic 36 | . . . 36 Impact . | . . . . Slashing . | . . . . Piercing . | . . . . Highest Corruption . | . . . . Average Corruption . | . . . . Corruption Purged . | . . . . Corruption Blocked . | . . . . Overload Shots . | . . . . Overflow Damage . | . . . . Projectiles . | . . . . Explosions . | . . . . Melee . | . . . . Knockbacks . | . . . . Impact . | . . . . Kinetic . | . . . . Secondary . | . . . . Self-Inflicted Damage . | . . . . Shots . | . . . . Rammed . | . . . . Targets Rammed . | . . . . Kicked . | . . . . Crushed . | . . . . Highest Temperature . | . . . . Average Temperature . | . . . . Received Heat Transfer 84 | . . . 84 Siege Activations . | . . . . Martial Activations . | . . . . Shielding Activations . | . . . . Robots Disrupted . | . . . . Combat Hostiles . | . . . . Robots Corrupted . | . . . . Combat Hostiles . | . . . . Parts Fried . | . . . . Impact Corruptions . | . . . . Robots Melted . | . . . . Combat Hostiles . | . . . . Parts Melted 1 | . . . 1 Heat Transferred 325 | 225 . . 100 Parts Sabotaged . | . . . . Parts Stolen . | . . . . Parts Stripped . | . . . . Power Chain Reactions . | . . . . Alert | -11 -10 -10 -10 ------- Run | Yrd Mat Min Sub Maximum Alert Level . | . . . . Low Security (%) 100 | 100 100 100 . Level 1 . | . . . . Level 2 . | . . . . Level 3 . | . . . . Level 4 . | . . . . Level 5 . | . . . . High Security . | . . . . Max Security . | . . . . Peak Influence 20 | 20 . . . Initial . | . . . . Average 2 | 5 . . . Influence Increases 40 | 40 . . . Destroy 0b10 Robot/NC 40 | 40 . . . Influence Decreases 40 | 40 . . . Time Decay 40 | 40 . . . Squads Dispatched 1 | . 1 . . Investigation . | . . . . Extermination . | . . . . Reinforcement 1 | . 1 . . Assault . | . . . . Garrison . | . . . . Intercept . | . . . . Searches Triggered . | . . . . Construction Impeded . | . . . . Haulers Reinforced . | . . . . Active Scanning Responses . | . . . . Cargo Convoy Interrupts . | . . . . Stealth | -11 -10 -10 -10 --------- Run | Yrd Mat Min Sub Distress Signals . | . . . . Communications Jammed . | . . . . Distress Signals . | . . . . Times Spotted 7 | . 1 . 6 Peak Tracking Total 3 | . 2 . 3 Tactical Retreats . | . . . . Traps | -11 -10 -10 -10 ------- Run | Yrd Mat Min Sub Traps Triggered . | . . . . Indirectly . | . . . . Trap Hack Attempts . | . . . . Triggered . | . . . . Disarmed . | . . . . Reprogrammed . | . . . . Reused . | . . . . Traps Extracted . | . . . . Installed . | . . . . Triggered . | . . . . Machines | -11 -10 -10 -10 ---------- Run | Yrd Mat Min Sub Machines Disabled . | . . . . Max in Single Turn . | . . . . Machines Repaired . | . . . . Machines Dismantled . | . . . . Machines Sabotaged . | . . . . Overloaded Fab Kills . | . . . . Hacking | -11 -10 -10 -10 --------- Run | Yrd Mat Min Sub Machines Accessed 1 | . . . 1 Terminals . | . . . . Fabricators . | . . . . Repair Stations . | . . . . Recycling Units . | . . . . Scanalyzers . | . . . . Garrison Access . | . . . . Total Hacks 9 | . . . 9 Successful 9 | . . . 9 Failed . | . . . . Catastrophic . | . . . . Database Lockouts . | . . . . Manual . | . . . . Terminals . | . . . . Fabricators . | . . . . Repair Stations . | . . . . Recycling Units . | . . . . Scanalyzers . | . . . . Garrison Access . | . . . . Terminal Hacks 9 | . . . 9 Record 8 | . . . 8 Proto ID Catalog 1 | . . . 1 Fabricator Hacks . | . . . . Repair Station Hacks . | . . . . Recycling Unit Hacks . | . . . . Scanalyzer . | . . . . Garrison Access Hacks . | . . . . Unauthorized Hacks . | . . . . Terminals . | . . . . Fabricators . | . . . . Repair Stations . | . . . . Recycling Units . | . . . . Scanalyzers . | . . . . Garrison Access . | . . . . Data Cores Recovered . | . . . . Used . | . . . . Hacking Detections . | . . . . Full Trace Events . | . . . . Feedback Events . | . . . . Feedback Blocked . | . . . . Robot Schematics Acquired . | . . . . Robots Built . | . . . . Authchips . | . . . . Time . | . . . . Total Robot Build Rating . | . . . . Part Schematics Acquired . | . . . . Parts Built . | . . . . Authchips . | . . . . Time . | . . . . Total Part Build Rating . | . . . . Parts Repaired . | . . . . Time . | . . . . Parts Recycled . | . . . . Recycled Matter . | . . . . Retrieved Matter . | . . . . Retrieved Components . | . . . . Parts Scanalyzed . | . . . . Part Schematics Acquired . | . . . . Parts Damaged . | . . . . Bothacking | -11 -10 -10 -10 ------------ Run | Yrd Mat Min Sub Used RIF Installer . | . . . . Robots Hacked . | . . . . Non-combat . | . . . . Combat . | . . . . Robot Hacks Applied . | . . . . Relay Couplers Released . | . . . . Fabnet Peak Effective % . | . . . . Robots Rewired . | . . . . Allies Hacked . | . . . . Hacks Repelled . | . . . . Allies | -11 -10 -10 -10 -------- Run | Yrd Mat Min Sub Total Allies . | . . . . Largest Group . | . . . . Highest-Rated Group . | . . . . Highest-Rated Ally . | . . . . Total Orders . | . . . . Ally Attacks . | . . . . Total Damage . | . . . . Kills . | . . . . Allies Corrupted . | . . . . Allies Melted . | . . . . Intel | -11 -10 -10 -10 ------- Run | Yrd Mat Min Sub Active Infowar (turns) 660 | 69 67 95 429 Terrain 660 | 69 67 95 429 Robot Analysis Total . | . . . . Derelict Logs Recovered . | . . . . Drone Launches . | . . . . Drone Recoveries . | . . . . Exploration | -11 -10 -10 -10 ------------- Run | Yrd Mat Min Sub Turns Passed 738 | 141 67 95 435 Spaces Moved 506 | 84 64 63 295 Core 15 | 15 . . . Treads . | . . . . Legs . | . . . . Wheels 491 | 69 64 63 295 Hover . | . . . . Flight . | . . . . Fastest Speed 50 | 50 100 100 100 Average Speed 104 | 102 100 100 107 Slowest Speed 150 | 150 100 100 130 Overloaded Moves . | . . . . Propulsion Burnouts . | . . . . Robots Hopped . | . . . . Potential Cave-ins . | . . . . Cave-ins Triggered . | . . . . Exploration Rate (%) 16 | 5 20 20 22 Regions Visited 3 Branch Regions 2 Pre-discovered Areas . | . . . . Known Exits Taken . | . . . . Unknown Exits Taken 3 | 1 1 1 . Scrap Searched 2 | . . . 2 Spaces Dug . | . . . . Terrain Destroyed . | . . . . Melee . | . . . . Projectile . | . . . . AOE . | . . . . Terrain Rammed . | . . . . Walls Destroyed . | . . . . Machines Disabled . | . . . . Actions | -11 -10 -10 -10 --------- Run | Yrd Mat Min Sub Total 642 | 111 66 95 370 Wait 71 | . . 33 38 Move 503 | 83 63 62 295 Hop . | . . . . Pick Up 15 | 5 2 . 8 Fast Attach 9 | 8 . . 1 Attach 5 | . . . 5 Detach . | . . . . Swap 3 | 1 1 . 1 Drop 3 | 2 . . 1 Fire 33 | 12 . . 21 Melee . | . . . . Ram . | . . . . Kick . | . . . . Crush . | . . . . Escape Stasis . | . . . . Rewire . | . . . . Trap . | . . . . Miscellaneous . | . . . . Route ------- -11/Scrapyard -10/Materials -10/Mines -10/Subcaves History --------- Turn | Location | Event 39 | -11/Scrapyard | Discovered new exit (range 12) 142 | -11/Scrapyard | Entered Materials 203 | -10/Materials | Discovered new exit (range 6) 209 | -10/Materials | Entered Mines 295 | -10/Mines | Discovered new exit (range 5) 301 | -10/Mines | Build established: Mutant 304 | -10/Mines | Entered Subcaves 305 | -10/Subcaves | Approached by a straggling Scientist 682 | -10/Subcaves | Visited 4L-MR0's lab 710 | -10/Subcaves | Core integrity fell below 50% 726 | -10/Subcaves | Core integrity fell below 20% 739 | -10/Subcaves | Destroyed by W6-TAZ(R) with Subdweller Machine Gun Last Messages --------------- high-capacity matter pods they can find for more efficient transfer while firing. >>Record! "Infernogeddon Engine" There was a rumor. A rumor but no details. I can't build something based on a vague rumor about ending the world in a hellish blaze at the flip of a switch. Also why would anyone want that. >>Record! "Uberlauncher" I hear [REDACTED] exploded during the installation process. I did warn them to fully install it before trying to fire, and something tells me that's where things went wrong. Still I'm glad they didn't listen, that way I'm not culpable for whatever they would've done with it. If we're lucky even some of the others got blasted, too. 00733_ Critical hit (Destroy). 00733_ Imp. Terrain Scanner destroyed. 00735_ Flamer destroyed. Map ----- +----------------------------------------------------+ | ?????????????????????????????? | | ?????????????????????????????? | | ?????????????????????????????? | | ?????????????????????????????? | | ?????????????????????????????? | | ?????????????????????????????? | | ?????????????????????????????? | | ?????????????????????????????? | | ?????????????????????????????? | | ?????????????????????????????? | | ??????????????#??????????????? | | ?????????????????????????????? | | ?????????????????????????#?### | | ??????????????????????????# # | | ?????????????????###?????# | | ????????#?#?????## #????# | | ???????????????## #??## | | ??????????????## #### #? | | ??????????#???# ## #?? | | ??????##??#???# ??? | | ???#?#??###?#?# #???#? | | ???####?" #???# ##???? | | ???# !#??# "??## ###?? | | ????""#### ??# ### | | ???## ## ###" # # | | ???#"@ #?# # " #### % # | | ??##""RR#?# #### | | ???#"X #?# ### | | ???# " #?# #" ## | | ???#" #### ## ## | | ???#" ##" # ### | | ???# #+##%=[ ## #?# | | ???#""# ##%= ## ### | | ???#### "### # # | | ??????#" " "### % # | | ??????#######??# | | ??#?##?????#?#?# ##### | | ?????????##???## ##??## | | ?????????#?##??## ##??## | | ???#???#?#?#?#??# ##??## | | ?????#??????????# ##??? | | ???????#?#??????# ##?? | | ?#???????#??????## ## #?# | | ???#????#????????# #### ### | | ????#??????#?????###?## | | ????#???#??????#??#### | | ??????????##????### ### | | ??????##????????# ## ## | | ????????????????# #### | | ????????????????## ###??? | +----------------------------------------------------+ Best States ------------- Heat Dissipation 25 Energy Generation 10 Energy Capacity 250 Matter Stores 300 Matter Capacity 300 Sight Range 16 Terrain Scan Range 16 Terrain Scan Density 10 Evasion (%) 44 Item Schematics ----------------- None Robot Schematics ------------------ None Fabricated ------------ Nothing Repaired ---------- Nothing Alien Tech Used ----------------- None Achievements -------------- None Challenges ------------ None Game ------ Seed SalvageFortressShearcannon Manual? 0 Play Time 00:09:07 Cumulative 17.8 hours Start 2025.09.09 @ 12:19:44 End 2025.09.09 @ 12:25:28 Sessions 1 Manual Loads 0 Difficulty Rogue Special Mode None Game No. 54 Rogue 54 Adventurer 0 Explorer 0 Win Type - Total 0 Types 0/0/0/0/0/0/0/0/0/0 Lore% 17 Gallery% 22 Achievement% 25 Wizard Run 0 Options --------- Layout 2 ASCII 0 Keyboard 0 Movement Mouse Keybinds 0 Fullscreen 2 Font 24/Smallcaps Map View 50x44 Zoom Use 0% Tactical HUD 1 Map Filters NONE Filters NONE Steam 1 RUN: ba2421a9-5ed0-40a1-96d3-ca6577d6fcba